[Event "Titled Tuesday Blitz May 23 Early 2023"]
[White "Rosh Jain"]
[Black "Ordekalog"]
[WhiteFideId "25789465"]
[WhiteElo "2233"]
[BlackElo "2493"]
[Result "0-1"]
[Round "04"]
[TimeControl "180+2"]
[Date "2023.05.23"]
[WhiteClock "0:01:04"]
[BlackClock "0:01:00"]

1. e4 {[%clk 0:03:00]}  d5 {[%clk 0:02:58]} 2. exd5 {[%clk 0:03:00]}  Qxd5 {[%clk 0:02:58]} 3. Nc3 {[%clk 0:03:00]}  Qa5 {[%clk 0:02:57]} 4. d4 {[%clk 0:02:59]}  Nf6 {[%clk 0:02:57]} 5. Nf3 {[%clk 0:02:58]}  Bg4 {[%clk 0:02:57]} 6. Bc4 {[%clk 0:02:57]}  e6 {[%clk 0:02:54]} 7. Bd2 {[%clk 0:02:54]}  c6 {[%clk 0:02:53]} 8. Nd5 {[%clk 0:02:54]}  Qd8 {[%clk 0:02:52]} 9. Nxf6+ {[%clk 0:02:54]}  Qxf6 {[%clk 0:02:51]} 10. Bc3 {[%clk 0:02:49]}  Bxf3 {[%clk 0:02:50]} 11. Qxf3 {[%clk 0:02:49]}  Qxf3 {[%clk 0:02:49]} 12. gxf3 {[%clk 0:02:50]}  Nd7 {[%clk 0:02:48]} 13. O-O-O {[%clk 0:02:46]}  O-O-O {[%clk 0:02:45]} 14. Rhg1 {[%clk 0:02:46]}  Nf6 {[%clk 0:02:42]} 15. b3 {[%clk 0:02:43]}  Ba3+ {[%clk 0:02:31]} 16. Kb1 {[%clk 0:02:42]}  b5 {[%clk 0:02:21]} 17. Bd3 {[%clk 0:02:41]}  Nd5 {[%clk 0:02:20]} 18. Bb2 {[%clk 0:02:39]}  Bxb2 {[%clk 0:02:18]} 19. Kxb2 {[%clk 0:02:40]}  g6 {[%clk 0:02:16]} 20. Rg4 {[%clk 0:02:36]}  h5 {[%clk 0:02:02]} 21. Re4 {[%clk 0:02:36]}  b4 {[%clk 0:01:54]} 22. Rde1 {[%clk 0:02:30]}  Kc7 {[%clk 0:01:47]} 23. a3 {[%clk 0:02:30]}  a5 {[%clk 0:01:45]} 24. Re5 {[%clk 0:02:22]}  Kb6 {[%clk 0:01:38]} 25. Bc4 {[%clk 0:02:19]}  Nc3 {[%clk 0:01:32]} 26. axb4 {[%clk 0:02:18]}  axb4 {[%clk 0:01:32]} 27. Ra1 {[%clk 0:02:10]}  Ra8 {[%clk 0:01:32]} 28. Ree1 {[%clk 0:02:08]}  Rhd8 {[%clk 0:01:24]} 29. Rxa8 {[%clk 0:01:35]}  Rxa8 {[%clk 0:01:23]} 30. Re5 {[%clk 0:01:26]}  Rd8 {[%clk 0:01:04]} 31. Re3 {[%clk 0:01:04]}  Rxd4 {[%clk 0:01:00]} 0-1


[Site "https://www.chess.com"]

[Event "Titled Tuesday Blitz May 23 Early 2023"]
[White "ChawitAp"]
[Black "Lucas, Arthur"]
[BlackFideId "26093073"]
[WhiteElo "2263"]
[BlackElo "2251"]
[Result "0-1"]
[Round "04"]
[TimeControl "180+2"]
[Date "2023.05.23"]
[WhiteClock "0:00:05"]
[BlackClock "0:01:08"]

1. d4 {[%clk 0:02:58]}  g6 {[%clk 0:02:54]} 2. Nf3 {[%clk 0:02:56]}  Bg7 {[%clk 0:02:54]} 3. c3 {[%clk 0:02:56]}  Nf6 {[%clk 0:02:52]} 4. Bf4 {[%clk 0:02:56]}  d6 {[%clk 0:02:52]} 5. Nbd2 {[%clk 0:02:56]}  O-O {[%clk 0:02:52]} 6. h3 {[%clk 0:02:57]}  b6 {[%clk 0:02:52]} 7. e3 {[%clk 0:02:56]}  Bb7 {[%clk 0:02:52]} 8. Be2 {[%clk 0:02:57]}  Nbd7 {[%clk 0:02:52]} 9. O-O {[%clk 0:02:57]}  a6 {[%clk 0:02:52]} 10. a4 {[%clk 0:02:57]}  c5 {[%clk 0:02:49]} 11. dxc5 {[%clk 0:02:55]}  bxc5 {[%clk 0:02:47]} 12. Rb1 {[%clk 0:02:41]}  Ra7 {[%clk 0:02:45]} 13. Qc2 {[%clk 0:02:36]}  Qa8 {[%clk 0:02:45]} 14. b4 {[%clk 0:02:30]}  Ne4 {[%clk 0:02:42]} 15. Nxe4 {[%clk 0:02:21]}  Bxe4 {[%clk 0:02:43]} 16. Bd3 {[%clk 0:02:21]}  Bxf3 {[%clk 0:02:41]} 17. gxf3 {[%clk 0:02:22]}  Qxf3 {[%clk 0:02:40]} 18. b5 {[%clk 0:01:58]}  axb5 {[%clk 0:02:35]} 19. axb5 {[%clk 0:01:59]}  Qxh3 {[%clk 0:02:29]} 20. Be4 {[%clk 0:01:55]}  Rb8 {[%clk 0:02:13]} 21. c4 {[%clk 0:01:23]}  Nb6 {[%clk 0:02:03]} 22. Rfd1 {[%clk 0:00:59]}  Qe6 {[%clk 0:01:46]} 23. Bd5 {[%clk 0:00:56]}  Nxd5 {[%clk 0:01:42]} 24. cxd5 {[%clk 0:00:56]}  Qf5 {[%clk 0:01:37]} 25. Qc4 {[%clk 0:00:42]}  Qg4+ {[%clk 0:01:29]} 26. Kf1 {[%clk 0:00:31]}  g5 {[%clk 0:01:30]} 27. b6 {[%clk 0:00:27]}  Rab7 {[%clk 0:01:30]} 28. Qa6 {[%clk 0:00:11]}  gxf4 {[%clk 0:01:28]} 29. exf4 {[%clk 0:00:12]}  Qxf4 {[%clk 0:01:21]} 30. Ke2 {[%clk 0:00:12]}  Qe4+ {[%clk 0:01:19]} 31. Kf1 {[%clk 0:00:12]}  Bd4 {[%clk 0:01:16]} 32. Rb3 {[%clk 0:00:09]}  Qh1+ {[%clk 0:01:09]} 33. Ke2 {[%clk 0:00:09]}  Qh5+ {[%clk 0:01:09]} 34. Kf1 {[%clk 0:00:05]}  Qxd1+ {[%clk 0:01:08]} 0-1


[Site "https://www.chess.com"]

[Event "Titled Tuesday Blitz May 23 Early 2023"]
[White "Ljukin, Sergei"]
[Black "Zaichenko, Daria"]
[WhiteFideId "14102200"]
[BlackFideId "4197453"]
[WhiteElo "2312"]
[BlackElo "2039"]
[Result "0-1"]
[Round "04"]
[TimeControl "180+2"]
[Date "2023.05.23"]
[WhiteClock "0:00:00"]
[BlackClock "0:00:08"]

1. e4 {[%clk 0:02:56]}  c5 {[%clk 0:02:59]} 2. Nf3 {[%clk 0:02:56]}  Nc6 {[%clk 0:02:59]} 3. d4 {[%clk 0:02:56]}  cxd4 {[%clk 0:02:59]} 4. Nxd4 {[%clk 0:02:57]}  Nf6 {[%clk 0:02:59]} 5. Nc3 {[%clk 0:02:57]}  d6 {[%clk 0:02:58]} 6. Bc4 {[%clk 0:02:56]}  e5 {[%clk 0:02:55]} 7. Nxc6 {[%clk 0:02:54]}  bxc6 {[%clk 0:02:55]} 8. Bg5 {[%clk 0:02:54]}  Be7 {[%clk 0:02:55]} 9. Qd2 {[%clk 0:02:51]}  Be6 {[%clk 0:02:03]} 10. Bb3 {[%clk 0:02:47]}  d5 {[%clk 0:02:00]} 11. Bxf6 {[%clk 0:02:39]}  Bxf6 {[%clk 0:01:53]} 12. exd5 {[%clk 0:02:39]}  cxd5 {[%clk 0:01:54]} 13. Nxd5 {[%clk 0:02:12]}  O-O {[%clk 0:01:53]} 14. Nxf6+ {[%clk 0:02:09]}  Qxf6 {[%clk 0:01:52]} 15. O-O {[%clk 0:02:09]}  e4 {[%clk 0:01:34]} 16. Bxe6 {[%clk 0:01:40]}  Qxe6 {[%clk 0:01:33]} 17. b3 {[%clk 0:01:40]}  Rfd8 {[%clk 0:01:29]} 18. Qe3 {[%clk 0:01:35]}  Rd7 {[%clk 0:01:20]} 19. Rad1 {[%clk 0:01:28]}  Rad8 {[%clk 0:01:18]} 20. Rxd7 {[%clk 0:01:28]}  Rxd7 {[%clk 0:01:18]} 21. h3 {[%clk 0:01:28]}  g6 {[%clk 0:01:17]} 22. c4 {[%clk 0:01:24]}  a5 {[%clk 0:01:11]} 23. Rc1 {[%clk 0:01:17]}  Rd3 {[%clk 0:01:03]} 24. Qf4 {[%clk 0:01:16]}  e3 {[%clk 0:00:57]} 25. fxe3 {[%clk 0:01:14]}  Rxe3 {[%clk 0:00:57]} 26. c5 {[%clk 0:01:02]}  Re4 {[%clk 0:00:35]} 27. Qb8+ {[%clk 0:00:19]}  Kg7 {[%clk 0:00:35]} 28. c6 {[%clk 0:00:13]}  Re2 {[%clk 0:00:17]} 29. Qf4 {[%clk 0:00:08]}  Qd5 {[%clk 0:00:15]} 30. Qg3 {[%clk 0:00:05]}  Qd4+ {[%clk 0:00:13]} 31. Kh2 {[%clk 0:00:05]}  Re3 {[%clk 0:00:12]} 32. Qg4 {[%clk 0:00:03]}  Qe5+ {[%clk 0:00:11]} 33. Kh1 {[%clk 0:00:01]}  Rc3 {[%clk 0:00:10]} 34. Rxc3 {[%clk 0:00:01]}  Qxc3 {[%clk 0:00:10]} 35. Qe4 {[%clk 0:00:00]}  f5 {[%clk 0:00:08]} 0-1


[Site "https://www.chess.com"]

[Event "Titled Tuesday Blitz May 23 Early 2023"]
[White "Feinig, Mario"]
[Black "Flynn, Jacob"]
[WhiteFideId "1618113"]
[BlackFideId "2509393"]
[WhiteElo "2163"]
[BlackElo "2053"]
[Result "0-1"]
[Round "04"]
[TimeControl "180+2"]
[Date "2023.05.23"]
[WhiteClock "0:00:00"]
[BlackClock "0:01:17"]

1. e4 {[%clk 0:02:51]}  e5 {[%clk 0:03:00]} 2. Nc3 {[%clk 0:02:43]}  Nf6 {[%clk 0:03:00]} 3. g3 {[%clk 0:02:41]}  d5 {[%clk 0:03:00]} 4. exd5 {[%clk 0:02:40]}  Nxd5 {[%clk 0:03:00]} 5. Bg2 {[%clk 0:02:40]}  Nxc3 {[%clk 0:03:01]} 6. bxc3 {[%clk 0:02:40]}  Bd6 {[%clk 0:03:01]} 7. Nf3 {[%clk 0:02:35]}  Nc6 {[%clk 0:03:01]} 8. O-O {[%clk 0:02:34]}  O-O {[%clk 0:03:02]} 9. h3 {[%clk 0:02:32]}  Re8 {[%clk 0:03:01]} 10. Re1 {[%clk 0:02:28]}  Bd7 {[%clk 0:03:01]} 11. Rb1 {[%clk 0:02:19]}  Rb8 {[%clk 0:03:01]} 12. d4 {[%clk 0:02:10]}  exd4 {[%clk 0:02:57]} 13. cxd4 {[%clk 0:02:11]}  Rxe1+ {[%clk 0:02:54]} 14. Qxe1 {[%clk 0:02:12]}  Qf6 {[%clk 0:02:51]} 15. Bb2 {[%clk 0:01:42]}  Qe6 {[%clk 0:02:45]} 16. Qc3 {[%clk 0:01:21]}  Bb4 {[%clk 0:02:35]} 17. Qb3 {[%clk 0:01:17]}  Qxb3 {[%clk 0:02:33]} 18. axb3 {[%clk 0:01:17]}  Re8 {[%clk 0:02:33]} 19. d5 {[%clk 0:01:12]}  Ne7 {[%clk 0:02:29]} 20. c3 {[%clk 0:01:05]}  Bc5 {[%clk 0:02:25]} 21. c4 {[%clk 0:01:02]}  Nf5 {[%clk 0:02:23]} 22. Ne5 {[%clk 0:00:59]}  Bc8 {[%clk 0:02:19]} 23. Nd3 {[%clk 0:00:50]}  Bf8 {[%clk 0:02:05]} 24. g4 {[%clk 0:00:49]}  Nd6 {[%clk 0:01:59]} 25. Ra1 {[%clk 0:00:46]}  a6 {[%clk 0:01:56]} 26. Kf1 {[%clk 0:00:39]}  f6 {[%clk 0:01:49]} 27. Re1 {[%clk 0:00:37]}  Rxe1+ {[%clk 0:01:47]} 28. Kxe1 {[%clk 0:00:38]}  b6 {[%clk 0:01:47]} 29. f4 {[%clk 0:00:33]}  Nb7 {[%clk 0:01:48]} 30. Bd4 {[%clk 0:00:23]}  Na5 {[%clk 0:01:43]} 31. f5 {[%clk 0:00:06]}  Nxb3 {[%clk 0:01:43]} 32. Bc3 {[%clk 0:00:06]}  Bd6 {[%clk 0:01:39]} 33. Ke2 {[%clk 0:00:05]}  a5 {[%clk 0:01:39]} 34. Ke3 {[%clk 0:00:04]}  Bd7 {[%clk 0:01:39]} 35. Nf4 {[%clk 0:00:03]}  Bc5+ {[%clk 0:01:37]} 36. Kd3 {[%clk 0:00:02]}  a4 {[%clk 0:01:31]} 37. Kc2 {[%clk 0:00:02]}  Bd6 {[%clk 0:01:24]} 38. Ne6 {[%clk 0:00:02]}  Nc5 {[%clk 0:01:20]} 39. Kb2 {[%clk 0:00:01]}  Nd3+ {[%clk 0:01:18]} 40. Ka2 {[%clk 0:00:01]}  Nc1+ {[%clk 0:01:16]} 41. Kb2 {[%clk 0:00:00]}  Ne2 {[%clk 0:01:17]} 0-1


[Site "https://www.chess.com"]

[Event "Titled Tuesday Blitz May 23 Early 2023"]
[White "Pham, Le Thao Nguyen"]
[Black "Antonova, Nadezhda"]
[WhiteFideId "12401226"]
[BlackFideId "14700182"]
[WhiteElo "2286"]
[BlackElo "1799"]
[Result "1-0"]
[Round "04"]
[TimeControl "180+2"]
[Date "2023.05.23"]
[WhiteClock "0:01:21"]
[BlackClock "0:00:31"]

1. Nf3 {[%clk 0:02:54]}  Nf6 {[%clk 0:02:52]} 2. g3 {[%clk 0:02:54]}  g6 {[%clk 0:02:52]} 3. Bg2 {[%clk 0:02:54]}  Bg7 {[%clk 0:02:53]} 4. O-O {[%clk 0:02:55]}  O-O {[%clk 0:02:53]} 5. d3 {[%clk 0:02:55]}  d6 {[%clk 0:02:52]} 6. Nbd2 {[%clk 0:02:54]}  c5 {[%clk 0:02:52]} 7. e4 {[%clk 0:02:48]}  Nc6 {[%clk 0:02:52]} 8. c3 {[%clk 0:02:48]}  Rb8 {[%clk 0:02:51]} 9. Re1 {[%clk 0:02:46]}  b5 {[%clk 0:02:51]} 10. d4 {[%clk 0:02:40]}  e5 {[%clk 0:02:47]} 11. d5 {[%clk 0:02:34]}  Ne7 {[%clk 0:02:43]} 12. Nf1 {[%clk 0:02:33]}  Nd7 {[%clk 0:02:32]} 13. Bd2 {[%clk 0:02:10]}  h6 {[%clk 0:02:28]} 14. Qc1 {[%clk 0:02:09]}  Kh7 {[%clk 0:02:28]} 15. h3 {[%clk 0:02:05]}  c4 {[%clk 0:02:25]} 16. b4 {[%clk 0:02:03]}  cxb3 {[%clk 0:02:13]} 17. axb3 {[%clk 0:02:03]}  Nc5 {[%clk 0:02:13]} 18. Qc2 {[%clk 0:01:53]}  f5 {[%clk 0:02:13]} 19. Rxa7 {[%clk 0:01:39]}  Nxe4 {[%clk 0:02:05]} 20. c4 {[%clk 0:01:30]}  bxc4 {[%clk 0:01:54]} 21. bxc4 {[%clk 0:01:29]}  Re8 {[%clk 0:01:06]} 22. Ba5 {[%clk 0:01:25]}  Rb6 {[%clk 0:00:46]} 23. Rb1 {[%clk 0:01:22]}  Rxb1 {[%clk 0:00:31]} 24. Bxd8 {[%clk 0:01:21]} 1-0


[Site "https://www.chess.com"]

[Event "Titled Tuesday Blitz May 23 Early 2023"]
[White "rionelG"]
[Black "Zavortink, Matt"]
[BlackFideId "2034263"]
[WhiteElo "2212"]
[BlackElo "2462"]
[Result "0-1"]
[Round "04"]
[TimeControl "180+2"]
[Date "2023.05.23"]
[WhiteClock "0:00:05"]
[BlackClock "0:00:22"]

1. e4 {[%clk 0:01:19]}  e6 {[%clk 0:02:59]} 2. d3 {[%clk 0:01:19]}  d5 {[%clk 0:02:59]} 3. Nd2 {[%clk 0:01:20]}  Nf6 {[%clk 0:03:00]} 4. g3 {[%clk 0:01:20]}  dxe4 {[%clk 0:02:59]} 5. dxe4 {[%clk 0:01:20]}  e5 {[%clk 0:03:00]} 6. Bg2 {[%clk 0:01:20]}  Bc5 {[%clk 0:02:59]} 7. Ngf3 {[%clk 0:01:21]}  O-O {[%clk 0:02:58]} 8. O-O {[%clk 0:01:21]}  Qe7 {[%clk 0:02:55]} 9. c3 {[%clk 0:01:21]}  a5 {[%clk 0:02:54]} 10. h3 {[%clk 0:01:21]}  Rd8 {[%clk 0:02:49]} 11. Re1 {[%clk 0:01:20]}  b6 {[%clk 0:02:45]} 12. Nh4 {[%clk 0:01:14]}  Ba6 {[%clk 0:02:27]} 13. Qf3 {[%clk 0:01:13]}  Rd3 {[%clk 0:02:18]} 14. Nf5 {[%clk 0:00:45]}  Qf8 {[%clk 0:02:02]} 15. Nh6+ {[%clk 0:00:37]}  Kh8 {[%clk 0:02:00]} 16. Qf5 {[%clk 0:00:34]}  Rxg3 {[%clk 0:01:47]} 17. Nb3 {[%clk 0:00:33]}  Bc8 {[%clk 0:01:09]} 18. Nxf7+ {[%clk 0:00:24]}  Kg8 {[%clk 0:01:08]} 19. Qxe5 {[%clk 0:00:24]}  Rxg2+ {[%clk 0:01:05]} 20. Kxg2 {[%clk 0:00:24]}  Qxf7 {[%clk 0:01:02]} 21. Nxc5 {[%clk 0:00:22]}  bxc5 {[%clk 0:01:00]} 22. Bf4 {[%clk 0:00:14]}  Nh5 {[%clk 0:00:47]} 23. Bg3 {[%clk 0:00:11]}  Na6 {[%clk 0:00:40]} 24. Rad1 {[%clk 0:00:11]}  Be6 {[%clk 0:00:33]} 25. b3 {[%clk 0:00:10]}  Rf8 {[%clk 0:00:32]} 26. Rd3 {[%clk 0:00:09]}  Nxg3 {[%clk 0:00:23]} 27. Rxg3 {[%clk 0:00:05]}  Qxf2+ {[%clk 0:00:22]} 0-1


[Site "https://www.chess.com"]

[Event "Titled Tuesday Blitz May 23 Early 2023"]
[White "merinasian"]
[Black "Floresvillar Gonzalez, Luis Migu"]
[BlackFideId "5100542"]
[WhiteElo "2460"]
[BlackElo "2040"]
[Result "1-0"]
[Round "04"]
[TimeControl "180+2"]
[Date "2023.05.23"]
[WhiteClock "0:00:11"]
[BlackClock "0:00:00"]

1. d4 {[%clk 0:03:00]}  Nf6 {[%clk 0:02:54]} 2. Nf3 {[%clk 0:03:01]}  d5 {[%clk 0:02:53]} 3. g3 {[%clk 0:02:55]}  Bf5 {[%clk 0:02:52]} 4. Bg2 {[%clk 0:02:54]}  c6 {[%clk 0:02:52]} 5. c4 {[%clk 0:02:51]}  e6 {[%clk 0:02:51]} 6. Nc3 {[%clk 0:02:43]}  Nbd7 {[%clk 0:02:48]} 7. Qb3 {[%clk 0:02:40]}  b6 {[%clk 0:02:37]} 8. O-O {[%clk 0:02:20]}  Bd6 {[%clk 0:02:36]} 9. cxd5 {[%clk 0:01:53]}  cxd5 {[%clk 0:02:33]} 10. Nb5 {[%clk 0:01:46]}  Bb8 {[%clk 0:02:32]} 11. Bf4 {[%clk 0:01:39]}  Bxf4 {[%clk 0:02:28]} 12. gxf4 {[%clk 0:01:38]}  O-O {[%clk 0:02:28]} 13. Rac1 {[%clk 0:01:26]}  a6 {[%clk 0:02:09]} 14. Nd6 {[%clk 0:01:03]}  Bg4 {[%clk 0:02:01]} 15. e3 {[%clk 0:00:59]}  Bxf3 {[%clk 0:01:57]} 16. Bxf3 {[%clk 0:00:58]}  Ne8 {[%clk 0:01:42]} 17. Nxe8 {[%clk 0:00:54]}  Rxe8 {[%clk 0:01:42]} 18. Rc6 {[%clk 0:00:54]}  b5 {[%clk 0:01:31]} 19. Rfc1 {[%clk 0:00:50]}  Nb6 {[%clk 0:01:30]} 20. Qb4 {[%clk 0:00:50]}  Nc4 {[%clk 0:01:29]} 21. b3 {[%clk 0:00:50]}  a5 {[%clk 0:01:00]} 22. Qxb5 {[%clk 0:00:41]}  Nd2 {[%clk 0:00:59]} 23. Bg2 {[%clk 0:00:39]}  Qh4 {[%clk 0:00:51]} 24. Qd3 {[%clk 0:00:33]}  Ne4 {[%clk 0:00:49]} 25. Bxe4 {[%clk 0:00:33]}  dxe4 {[%clk 0:00:48]} 26. Qxe4 {[%clk 0:00:34]}  g6 {[%clk 0:00:42]} 27. Qf3 {[%clk 0:00:32]}  a4 {[%clk 0:00:41]} 28. b4 {[%clk 0:00:32]}  a3 {[%clk 0:00:40]} 29. b5 {[%clk 0:00:32]}  Rab8 {[%clk 0:00:40]} 30. b6 {[%clk 0:00:32]}  Qd8 {[%clk 0:00:38]} 31. Rb1 {[%clk 0:00:31]}  Qd7 {[%clk 0:00:36]} 32. Kg2 {[%clk 0:00:28]}  Rec8 {[%clk 0:00:25]} 33. Rxc8+ {[%clk 0:00:26]}  Qxc8 {[%clk 0:00:25]} 34. b7 {[%clk 0:00:26]}  Qd7 {[%clk 0:00:21]} 35. Rb3 {[%clk 0:00:22]}  Kf8 {[%clk 0:00:19]} 36. Qe4 {[%clk 0:00:19]}  Qd5 {[%clk 0:00:16]} 37. Qxd5 {[%clk 0:00:17]}  exd5 {[%clk 0:00:16]} 38. Kg3 {[%clk 0:00:17]}  Ke7 {[%clk 0:00:16]} 39. Kg4 {[%clk 0:00:18]}  f6 {[%clk 0:00:16]} 40. h4 {[%clk 0:00:18]}  h5+ {[%clk 0:00:15]} 41. Kg3 {[%clk 0:00:17]}  Kd6 {[%clk 0:00:11]} 42. f5 {[%clk 0:00:16]}  g5 {[%clk 0:00:10]} 43. hxg5 {[%clk 0:00:15]}  fxg5 {[%clk 0:00:10]} 44. f6 {[%clk 0:00:15]}  Ke6 {[%clk 0:00:10]} 45. Rb6+ {[%clk 0:00:15]}  Kf7 {[%clk 0:00:09]} 46. f4 {[%clk 0:00:15]}  g4 {[%clk 0:00:08]} 47. Kh4 {[%clk 0:00:15]}  Kg6 {[%clk 0:00:07]} 48. f5+ {[%clk 0:00:13]}  Kf7 {[%clk 0:00:07]} 49. Kg3 {[%clk 0:00:13]}  Kf8 {[%clk 0:00:07]} 50. Kf4 {[%clk 0:00:12]}  Kf7 {[%clk 0:00:06]} 51. e4 {[%clk 0:00:12]}  dxe4 {[%clk 0:00:06]} 52. Kxe4 {[%clk 0:00:12]}  h4 {[%clk 0:00:04]} 53. Kf4 {[%clk 0:00:12]}  h3 {[%clk 0:00:03]} 54. Kg3 {[%clk 0:00:12]}  Kf8 {[%clk 0:00:03]} 55. Rb1 {[%clk 0:00:11]}  Kf7 {[%clk 0:00:02]} 56. d5 {[%clk 0:00:11]}  Kxf6 {[%clk 0:00:00]} 57. d6 {[%clk 0:00:11]} 1-0


[Site "https://www.chess.com"]

[Event "Titled Tuesday Blitz May 23 Early 2023"]
[White "Von Buelow, Georg"]
[Black "Manukian, Artak"]
[WhiteFideId "4620658"]
[BlackFideId "13301373"]
[WhiteElo "2149"]
[BlackElo "2130"]
[Result "1-0"]
[Round "04"]
[TimeControl "180+2"]
[Date "2023.05.23"]
[WhiteClock "0:00:12"]
[BlackClock "0:00:01"]

1. e4 {[%clk 0:02:50]}  c6 {[%clk 0:02:57]} 2. d4 {[%clk 0:02:50]}  d5 {[%clk 0:02:57]} 3. e5 {[%clk 0:02:50]}  Bf5 {[%clk 0:02:55]} 4. h4 {[%clk 0:02:50]}  h5 {[%clk 0:02:51]} 5. Bg5 {[%clk 0:02:50]}  Qb6 {[%clk 0:02:49]} 6. Bd3 {[%clk 0:02:49]}  Bxd3 {[%clk 0:02:41]} 7. Qxd3 {[%clk 0:02:50]}  e6 {[%clk 0:02:41]} 8. Nd2 {[%clk 0:02:50]}  Nh6 {[%clk 0:02:37]} 9. Ngf3 {[%clk 0:02:49]}  Nf5 {[%clk 0:02:37]} 10. O-O {[%clk 0:02:49]}  Nd7 {[%clk 0:02:29]} 11. c4 {[%clk 0:02:48]}  Qa6 {[%clk 0:02:23]} 12. Qb3 {[%clk 0:02:32]}  Be7 {[%clk 0:02:19]} 13. cxd5 {[%clk 0:02:19]}  cxd5 {[%clk 0:02:14]} 14. Bxe7 {[%clk 0:02:13]}  Nxe7 {[%clk 0:02:13]} 15. Rac1 {[%clk 0:02:03]}  Nc6 {[%clk 0:02:12]} 16. a3 {[%clk 0:01:50]}  O-O {[%clk 0:02:07]} 17. Qe3 {[%clk 0:01:49]}  Rfc8 {[%clk 0:01:54]} 18. Qg5 {[%clk 0:01:47]}  Qd3 {[%clk 0:01:49]} 19. Rc3 {[%clk 0:01:39]}  Qf5 {[%clk 0:01:27]} 20. Qxf5 {[%clk 0:01:37]}  exf5 {[%clk 0:01:28]} 21. Rfc1 {[%clk 0:01:37]}  Ne7 {[%clk 0:01:25]} 22. Rc7 {[%clk 0:01:20]}  Nf8 {[%clk 0:01:17]} 23. R1c3 {[%clk 0:01:09]}  Nc6 {[%clk 0:01:07]} 24. Rxb7 {[%clk 0:01:06]}  Ne6 {[%clk 0:01:05]} 25. Nb3 {[%clk 0:00:55]}  a5 {[%clk 0:00:57]} 26. Rb6 {[%clk 0:00:45]}  Ne7 {[%clk 0:00:48]} 27. Rxc8+ {[%clk 0:00:29]}  Nxc8 {[%clk 0:00:43]} 28. Rb5 {[%clk 0:00:24]}  a4 {[%clk 0:00:42]} 29. Nc5 {[%clk 0:00:21]}  Ne7 {[%clk 0:00:26]} 30. Nxe6 {[%clk 0:00:20]}  fxe6 {[%clk 0:00:26]} 31. Rb6 {[%clk 0:00:20]}  Ng6 {[%clk 0:00:19]} 32. g3 {[%clk 0:00:20]}  Nf8 {[%clk 0:00:15]} 33. Ng5 {[%clk 0:00:19]}  Rc8 {[%clk 0:00:15]} 34. Nxe6 {[%clk 0:00:18]}  Nxe6 {[%clk 0:00:16]} 35. Rxe6 {[%clk 0:00:18]}  Rc2 {[%clk 0:00:16]} 36. Rb6 {[%clk 0:00:17]}  Rd2 {[%clk 0:00:16]} 37. Rb4 {[%clk 0:00:17]}  Kf7 {[%clk 0:00:15]} 38. Kf1 {[%clk 0:00:18]}  f4 {[%clk 0:00:15]} 39. Ke1 {[%clk 0:00:17]}  Rd3 {[%clk 0:00:15]} 40. gxf4 {[%clk 0:00:17]}  Ke6 {[%clk 0:00:15]} 41. Rxa4 {[%clk 0:00:17]}  Kf5 {[%clk 0:00:15]} 42. Ra7 {[%clk 0:00:16]}  Rxd4 {[%clk 0:00:15]} 43. Rf7+ {[%clk 0:00:13]}  Kg4 {[%clk 0:00:14]} 44. e6 {[%clk 0:00:12]}  Re4+ {[%clk 0:00:14]} 45. Kf1 {[%clk 0:00:13]}  Rxe6 {[%clk 0:00:14]} 46. Rxg7+ {[%clk 0:00:12]}  Kxh4 {[%clk 0:00:14]} 47. a4 {[%clk 0:00:12]}  Rb6 {[%clk 0:00:13]} 48. a5 {[%clk 0:00:11]}  Rxb2 {[%clk 0:00:13]} 49. a6 {[%clk 0:00:12]}  Ra2 {[%clk 0:00:13]} 50. a7 {[%clk 0:00:12]}  d4 {[%clk 0:00:14]} 51. Ke1 {[%clk 0:00:12]}  d3 {[%clk 0:00:14]} 52. f5 {[%clk 0:00:12]}  Kh3 {[%clk 0:00:09]} 53. f6 {[%clk 0:00:12]}  h4 {[%clk 0:00:07]} 54. f7 {[%clk 0:00:12]}  Re2+ {[%clk 0:00:03]} 55. Kd1 {[%clk 0:00:12]}  Rxf2 {[%clk 0:00:01]} 56. a8=Q {[%clk 0:00:12]} 1-0


[Site "https://www.chess.com"]

[Event "Titled Tuesday Blitz May 23 Early 2023"]
[White "Mrudul Dehankar"]
[Black "ChesscularGodofchess"]
[WhiteFideId "25096990"]
[WhiteElo "2139"]
[BlackElo "2124"]
[Result "1-0"]
[Round "04"]
[TimeControl "180+2"]
[Date "2023.05.23"]
[WhiteClock "0:00:09"]
[BlackClock "0:00:48"]

1. e4 {[%clk 0:02:57]}  c5 {[%clk 0:02:07]} 2. Nf3 {[%clk 0:02:55]}  e6 {[%clk 0:02:05]} 3. d4 {[%clk 0:02:54]}  cxd4 {[%clk 0:02:06]} 4. Nxd4 {[%clk 0:02:55]}  Nc6 {[%clk 0:02:07]} 5. Nc3 {[%clk 0:02:54]}  Qc7 {[%clk 0:02:07]} 6. Be2 {[%clk 0:02:53]}  a6 {[%clk 0:02:08]} 7. O-O {[%clk 0:02:51]}  b5 {[%clk 0:02:08]} 8. Be3 {[%clk 0:02:47]}  Bb7 {[%clk 0:02:09]} 9. f4 {[%clk 0:02:44]}  Rc8 {[%clk 0:02:07]} 10. Bf3 {[%clk 0:02:32]}  Nxd4 {[%clk 0:02:07]} 11. Qxd4 {[%clk 0:02:26]}  Nf6 {[%clk 0:01:27]} 12. e5 {[%clk 0:01:50]}  Bxf3 {[%clk 0:01:26]} 13. exf6 {[%clk 0:01:48]}  Bc5 {[%clk 0:01:26]} 14. Qxc5 {[%clk 0:01:43]}  Qxc5 {[%clk 0:01:27]} 15. Bxc5 {[%clk 0:01:43]}  Rxc5 {[%clk 0:01:28]} 16. Rxf3 {[%clk 0:01:43]}  gxf6 {[%clk 0:01:27]} 17. Rf2 {[%clk 0:01:41]}  Ke7 {[%clk 0:01:26]} 18. Rd2 {[%clk 0:01:35]}  f5 {[%clk 0:01:25]} 19. Ne2 {[%clk 0:01:33]}  d5 {[%clk 0:01:23]} 20. Nd4 {[%clk 0:01:31]}  Rhc8 {[%clk 0:01:21]} 21. c3 {[%clk 0:01:26]}  Kf6 {[%clk 0:01:21]} 22. a4 {[%clk 0:01:23]}  Rb8 {[%clk 0:01:17]} 23. axb5 {[%clk 0:01:23]}  axb5 {[%clk 0:01:18]} 24. Ra6 {[%clk 0:01:20]}  b4 {[%clk 0:01:16]} 25. Rc2 {[%clk 0:00:49]}  bxc3 {[%clk 0:01:12]} 26. bxc3 {[%clk 0:00:19]}  Rb1+ {[%clk 0:01:10]} 27. Kf2 {[%clk 0:00:19]}  Rd1 {[%clk 0:01:09]} 28. Ne2 {[%clk 0:00:18]}  Rd3 {[%clk 0:01:08]} 29. Rb2 {[%clk 0:00:16]}  Rc4 {[%clk 0:01:07]} 30. Rb7 {[%clk 0:00:15]}  Rd2 {[%clk 0:01:04]} 31. Ke1 {[%clk 0:00:12]}  Rc2 {[%clk 0:00:58]} 32. Kd1 {[%clk 0:00:12]}  Rxe2 {[%clk 0:00:55]} 33. Kxe2 {[%clk 0:00:12]}  Rxc3 {[%clk 0:00:56]} 34. Raa7 {[%clk 0:00:12]}  Rc2+ {[%clk 0:00:56]} 35. Kf3 {[%clk 0:00:12]}  Rc3+ {[%clk 0:00:56]} 36. Kf2 {[%clk 0:00:13]}  Rc4 {[%clk 0:00:52]} 37. Rxf7+ {[%clk 0:00:12]}  Kg6 {[%clk 0:00:53]} 38. Rg7+ {[%clk 0:00:12]}  Kh6 {[%clk 0:00:54]} 39. Rxh7+ {[%clk 0:00:12]}  Kg6 {[%clk 0:00:54]} 40. Rhg7+ {[%clk 0:00:11]}  Kh6 {[%clk 0:00:54]} 41. Kg3 {[%clk 0:00:11]}  Rc3+ {[%clk 0:00:53]} 42. Kh4 {[%clk 0:00:12]}  Rc4 {[%clk 0:00:49]} 43. g3 {[%clk 0:00:11]}  e5 {[%clk 0:00:49]} 44. Rge7 {[%clk 0:00:09]}  exf4 {[%clk 0:00:48]} 45. Re6# {[%clk 0:00:09]} 1-0


[Site "https://www.chess.com"]